bitfinex/quotes_BTCUSD_20251226
["timestamp","ask_amount","ask_price","bid_price","bid_amount"]
[1766749376059,0.01128744,88594.0,88585.0,0.01128859]
[1766749376770,0.01128757,88593.0,88585.0,0.01128859]
[1766749377761,0.01128744,88594.0,88586.0,0.01128846]
[1766749377933,0.01128757,88593.0,88585.0,0.01128859]
[1766749378352,0.01128757,88593.0,88586.0,0.01128846]
[1766749378666,0.01128757,88593.0,88585.0,0.01128859]
[1766749378873,0.01128744,88594.0,88586.0,0.01128846]
[1766749379068,0.000524,88586.0,88584.0,0.01128872]
[1766749379300,0.000524,88586.0,88582.0,0.01132]
[1766749379597,0.01128897,88582.0,88575.0,0.04358991]
[1766749379807,0.01128884,88583.0,88575.0,0.01132]
[1766749379949,0.01128923,88580.0,88575.0,0.01132]
[1766749380161,0.0112891,88581.0,88575.0,0.01132]
[1766749380342,0.01128897,88582.0,88575.0,0.01132]
[1766749380736,0.06773339,88583.0,88575.0,0.01132]
[1766749381210,0.06773339,88583.0,88575.0,0.02260986]
[1766749381707,0.0004,88682.0,88576.0,0.01128973]
[1766749381708,0.07904984,88588.0,88576.0,0.01128973]
[1766749381916,0.41536226,88590.0,88575.0,0.02260986]
[1766749381917,0.01128757,88593.0,88582.0,0.06773348]
[1766749382060,0.01128808,88589.0,88581.0,0.0112891]
[1766749382266,0.01128795,88590.0,88581.0,0.0112891]
[1766749382464,0.01128808,88589.0,88581.0,0.0112891]
[1766749382662,0.01128795,88590.0,88582.0,0.01128897]
[1766749382983,0.01128795,88590.0,88578.0,0.01128948]
[1766749382984,0.01128833,88587.0,88578.0,0.01128948]
[1766749383150,0.05644076,88589.0,88580.0,0.01128923]
[1766749383350,0.01128808,88589.0,88581.0,0.0112891]
[1766749383600,0.05643908,88592.0,88583.0,0.01128884]
[1766749383894,0.05643908,88592.0,88584.0,0.01128872]
[1766749383895,0.0112877,88592.0,88584.0,0.01128872]
[1766749384127,0.01128757,88593.0,88585.0,0.01128859]
[1766749384679,0.0112877,88592.0,88584.0,0.01128872]
[1766749387230,0.01128782,88591.0,88583.0,0.01128884]
[1766749387525,0.01128744,88594.0,88585.0,0.01128859]
[1766749387677,0.02260744,88594.0,88586.0,0.01128846]
[1766749389425,0.01128719,88596.0,88587.0,0.01241704]
[1766749389610,0.01128731,88595.0,88587.0,0.01128833]
[1766749394997,0.07904347,88596.0,88585.0,0.06773107]
[1766749395252,0.01128744,88594.0,88585.0,0.01128859]
[1766749396947,0.01128757,88593.0,88585.0,0.01128859]
[1766749400184,0.01128744,88594.0,88586.0,0.01128846]
[1766749400387,0.01128757,88593.0,88585.0,0.01128859]
[1766749400995,0.01128744,88594.0,88586.0,0.01128846]
[1766749401378,0.01128757,88593.0,88585.0,0.01128859]
[1766749403705,0.01128731,88595.0,88585.0,0.06773107]
[1766749404087,0.01132,88596.0,88588.0,0.01128821]
[1766749404819,0.01128731,88595.0,88587.0,0.01128833]
[1766749405250,0.02260719,88596.0,88588.0,0.01128821]
[1766749407772,0.01128731,88595.0,88587.0,0.01128833]
[1766749408871,0.01128744,88594.0,88586.0,0.01128846]
[1766749409819,0.01128731,88595.0,88587.0,0.01128833]
[1766749411063,0.01128744,88594.0,88585.0,0.01128859]
[1766749411683,0.01128731,88595.0,88586.0,0.01128846]
[1766749412061,0.01128731,88595.0,88587.0,0.01128833]
[1766749413831,0.01128744,88594.0,88586.0,0.01128846]
[1766749413994,0.01128731,88595.0,88587.0,0.01128833]
[1766749415130,0.01128731,88595.0,88586.0,0.01128846]
[1766749415131,0.01128744,88594.0,88586.0,0.01128846]
[1766749416698,0.02260731,88595.0,88587.0,0.01128833]
[1766749421813,0.02260731,88595.0,88586.0,0.01128846]
[1766749421814,0.01128744,88594.0,88586.0,0.01128846]
[1766749422038,0.02260731,88595.0,88587.0,0.01128833]
[1766749422332,0.01128744,88594.0,88587.0,0.01128833]
[1766749423269,0.02260731,88595.0,88587.0,0.01128833]
[1766749427030,0.01132,88595.0,88588.0,0.01128821]
[1766749427483,0.02260731,88595.0,88587.0,0.01128833]
[1766749428163,0.01128744,88594.0,88586.0,0.01128846]
[1766749428683,0.02260731,88595.0,88587.0,0.01128833]
[1766749430290,0.01128744,88594.0,88586.0,0.01128846]
[1766749432303,0.06772477,88594.0,88584.0,0.01128872]
[1766749432508,0.01128782,88591.0,88580.0,0.06773506]
[1766749432687,0.01128757,88593.0,88583.0,0.01128884]
[1766749433219,0.01128757,88593.0,88584.0,0.01128872]
[1766749433424,0.01132801,88594.0,88586.0,0.01128846]
[1766749434223,4.057e-05,88594.0,88587.0,0.01128833]
[1766749435200,0.01132801,88594.0,88586.0,0.01128846]
[1766749435406,4.057e-05,88594.0,88587.0,0.01128833]
[1766749437019,0.01132801,88594.0,88586.0,0.01128846]
[1766749437194,4.057e-05,88594.0,88586.0,0.01128846]
[1766749437621,4.057e-05,88594.0,88587.0,0.01128833]
[1766749439159,0.01132801,88594.0,88586.0,0.01128846]
[1766749439361,4.057e-05,88594.0,88587.0,0.01128833]
[1766749439557,0.01132801,88594.0,88586.0,0.01128846]
[1766749439731,4.057e-05,88594.0,88587.0,0.01128833]
[1766749440245,0.01132801,88594.0,88586.0,0.01128846]
[1766749441972,0.01132801,88594.0,88585.0,0.01128859]
[1766749442268,0.01132801,88594.0,88586.0,0.01128846]
[1766749442472,0.01132801,88594.0,88585.0,0.01128859]
[1766749442839,0.01132801,88594.0,88586.0,0.01128846]
[1766749444281,0.01128757,88593.0,88582.0,0.01128897]
[1766749444482,0.000524,88586.0,88582.0,0.01128897]
[1766749444908,0.01128795,88590.0,88582.0,0.01128897]
[1766749445032,0.01128808,88589.0,88578.0,0.01128948]
[1766749445243,0.01128821,88588.0,88579.0,0.01128935]
[1766749445689,0.01128846,88586.0,88578.0,0.01128948]
[1766749445853,0.01128833,88587.0,88579.0,0.01128935]
[1766749446053,0.01128846,88586.0,88578.0,0.01128948]
[1766749446255,0.01128846,88586.0,88575.0,0.02260986]
[1766749446256,0.000524,88578.0,88575.0,0.02260986]
[1766749446655,0.40404532,88585.0,88578.0,0.01128948]
[1766749446869,0.01128846,88586.0,88578.0,0.01128948]
[1766749447478,0.01128859,88585.0,88577.0,0.01128961]
[1766749447697,0.01128846,88586.0,88578.0,0.01128948]
[1766749448454,0.01128846,88586.0,88577.0,0.01128961]
[1766749454127,0.01128859,88585.0,88577.0,0.01128961]
[1766749455960,0.01128795,88590.0,88579.0,0.01128935]
[1766749456164,0.40404532,88590.0,88582.0,0.01128897]
[1766749456380,0.40404532,88590.0,88583.0,0.01128884]
[1766749457445,0.41533327,88590.0,88582.0,0.01128897]
[1766749457650,0.40404532,88590.0,88583.0,0.01128884]
[1766749458630,0.40404532,88590.0,88584.0,0.01128872]
[1766749458940,0.40404532,88590.0,88585.0,0.01128859]
[1766749459237,0.01128757,88593.0,88585.0,0.01128859]
[1766749460274,0.0112877,88592.0,88584.0,0.01128872]
[1766749461653,0.01128782,88591.0,88583.0,0.01128884]
[1766749461847,0.0112877,88592.0,88584.0,0.01128872]
[1766749462961,0.01128782,88591.0,88583.0,0.01128884]
[1766749463157,0.0112877,88592.0,88584.0,0.01128872]
[1766749464131,0.01132801,88594.0,88585.0,0.01128859]
[1766749464720,4.057e-05,88594.0,88585.0,0.01128859]
[1766749465259,0.01128757,88593.0,88585.0,0.01128859]
[1766749465455,0.01132801,88594.0,88586.0,0.01128846]
[1766749465663,0.01128757,88593.0,88585.0,0.01128859]
[1766749466042,4.057e-05,88594.0,88587.0,0.01128833]
[1766749466467,0.01132801,88594.0,88586.0,0.01128846]
[1766749466996,4.057e-05,88594.0,88587.0,0.01128833]
[1766749467143,0.01132801,88594.0,88586.0,0.01128846]
[1766749467344,4.057e-05,88594.0,88587.0,0.01128833]
[1766749469323,4.057e-05,88594.0,88588.0,0.01128821]
[1766749469707,4.057e-05,88594.0,88589.0,0.01128808]
[1766749469885,0.05643376,88600.0,88589.0,0.01128808]
[1766749469886,0.40404532,88600.0,88591.0,0.01128782]
[1766749470089,0.01132,88597.0,88594.0,0.01128744]
[1766749470550,0.01132,88597.0,88589.0,0.01128808]
[1766749470672,0.01132,88597.0,88594.0,0.01128744]
[1766749470871,0.40404532,88600.0,88594.0,0.01128744]
[1766749471077,0.01132,88599.0,88595.0,0.01128731]
[1766749471525,0.01128629,88603.0,88595.0,0.01128731]
[1766749471742,0.01128629,88603.0,88590.0,0.01128795]
[1766749471743,0.0002,88604.0,88600.0,0.01128668]
[1766749472932,0.0002,88604.0,88599.0,0.06772076]
[1766749473089,0.0002,88604.0,88600.0,0.01128668]
[1766749473638,0.0002,88604.0,88599.0,0.0112868]
[1766749473845,0.00055,88599.0,88594.0,0.01132]
[1766749474328,0.01128642,88602.0,88594.0,0.01132]
[1766749474949,0.01128642,88602.0,88594.0,0.02260744]
[1766749475538,0.01128642,88602.0,88594.0,0.01132]
[1766749475777,0.01128655,88601.0,88594.0,0.01132]
[1766749476052,0.01128642,88602.0,88594.0,0.01132]
[1766749476349,0.01128629,88603.0,88595.0,0.01128731]
[1766749476565,0.4154949,88604.0,88596.0,0.01128719]
[1766749476736,0.01148617,88604.0,88596.0,0.01128719]
[1766749479263,0.01128629,88603.0,88595.0,0.01128731]
[1766749479442,0.01128642,88602.0,88594.0,0.02260744]
[1766749480051,0.01128629,88603.0,88595.0,0.01128731]
[1766749480632,0.01128629,88603.0,88594.0,0.02260744]
[1766749480633,0.01128642,88602.0,88594.0,0.02260744]
[1766749480839,0.01128642,88602.0,88595.0,0.01128731]
[1766749481434,0.01128642,88602.0,88594.0,0.02260744]
[1766749482047,0.01128629,88603.0,88595.0,0.01128731]
[1766749482950,0.01128642,88602.0,88594.0,0.02260744]
[1766749483572,0.06771817,88603.0,88594.0,0.01132]
[1766749483772,0.01128642,88602.0,88594.0,0.02260744]
[1766749483948,0.06771911,88602.0,88594.0,0.01132]
[1766749484166,0.01128629,88603.0,88594.0,0.02208344]
[1766749484372,0.01128642,88602.0,88594.0,0.01128744]
[1766749484558,0.01128642,88602.0,88593.0,0.01128757]
[1766749484983,0.01128642,88602.0,88594.0,0.01128744]
[1766749485155,0.01128642,88602.0,88593.0,0.01128757]
[1766749485820,0.01128629,88603.0,88595.0,0.01128731]
[1766749487016,0.01152,88604.0,88595.0,0.01128731]
[1766749487179,0.01152,88604.0,88597.0,0.01128706]
[1766749487380,0.01152,88604.0,88598.0,0.01128693]
[1766749487572,0.01152,88604.0,88597.0,0.01128706]
[1766749487811,0.01152,88604.0,88598.0,0.01128693]
[1766749488168,0.01152,88604.0,88597.0,0.01128706]
[1766749488579,0.01152,88604.0,88598.0,0.01128693]
[1766749489022,0.01152,88604.0,88597.0,0.01128706]
[1766749489587,0.01152,88604.0,88598.0,0.01128693]
[1766749490303,0.02280617,88604.0,88596.0,0.01128719]
[1766749490500,0.01152,88604.0,88597.0,0.01128706]
[1766749492358,0.02280617,88604.0,88596.0,0.01128719]
[1766749492855,0.01152,88604.0,88597.0,0.01128706]
[1766749494433,0.02280617,88604.0,88596.0,0.01128719]
[1766749495016,0.01128629,88603.0,88595.0,0.01128731]
[1766749495834,0.0002,88604.0,88597.0,0.01128706]
[1766749496101,0.0002,88604.0,88595.0,0.06772343]
[1766749496102,0.0002,88604.0,88596.0,0.01128719]
[1766749497195,0.0002,88604.0,88598.0,0.01128693]
[1766749498649,0.0002,88604.0,88597.0,0.01128706]
[1766749499086,0.0002,88604.0,88598.0,0.01128693]
[1766749501475,0.0002,88604.0,88597.0,0.01128706]
[1766749501668,0.01148617,88604.0,88595.0,0.01128731]
[1766749501876,0.00055,88595.0,88586.0,0.01128846]
[1766749502075,0.00055,88595.0,88587.0,0.0677297]
[1766749502276,0.00055,88595.0,88591.0,0.01128782]
[1766749502496,0.40400873,88600.0,88593.0,0.01128757]
[1766749502824,0.01128642,88602.0,88593.0,0.01128757]
[1766749502981,0.41529502,88603.0,88594.0,0.01128744]
[1766749503175,0.01128642,88602.0,88594.0,0.01128744]
[1766749503381,0.01128642,88602.0,88592.0,0.0112877]
[1766749503917,0.01128655,88601.0,88592.0,0.0112877]
[1766749504120,0.01128655,88601.0,88593.0,0.01128757]
[1766749504620,0.01128668,88600.0,88592.0,0.0112877]
[1766749504820,0.01128655,88601.0,88593.0,0.01128757]
[1766749504974,0.01128655,88601.0,88592.0,0.0112877]
[1766749505166,0.01128655,88601.0,88593.0,0.01128757]
[1766749506079,0.01128668,88600.0,88592.0,0.0112877]
[1766749506837,0.01128655,88601.0,88592.0,0.0112877]
[1766749507028,0.01128642,88602.0,88593.0,0.01128757]
[1766749507221,0.01128642,88602.0,88592.0,0.0112877]
[1766749507222,0.01128655,88601.0,88592.0,0.0112877]
[1766749507427,0.01128642,88602.0,88594.0,0.01128744]
[1766749508460,0.01128655,88601.0,88593.0,0.01128757]
[1766749509163,0.01128642,88602.0,88594.0,0.01128744]
[1766749509462,0.01128655,88601.0,88593.0,0.01128757]
[1766749510431,0.00016651,88596.0,88593.0,0.01128757]
[1766749510762,0.00016651,88596.0,88591.0,0.01128782]
[1766749510964,0.00016651,88596.0,88589.0,0.01136057]
[1766749511167,0.00016651,88596.0,88589.0,0.02264865]
[1766749511558,0.00016651,88596.0,88590.0,0.01128795]
[1766749511789,0.00016651,88596.0,88589.0,0.02264865]
[1766749512128,0.00016651,88596.0,88590.0,0.01128795]
[1766749512554,0.00016651,88596.0,88591.0,0.01128782]
[1766749515271,0.00016651,88596.0,88590.0,0.01128795]
[1766749515804,0.00016651,88596.0,88591.0,0.01128782]
[1766749516250,0.0112868,88599.0,88591.0,0.01128782]
[1766749517029,0.00055,88591.0,88589.0,0.01136057]
[1766749517828,0.00055,88591.0,88589.0,4.057e-05]
[1766749518035,0.01128719,88596.0,88589.0,4.057e-05]
[1766749518268,0.01128731,88595.0,88589.0,4.057e-05]
[1766749518545,0.01128719,88596.0,88589.0,4.057e-05]
[1766749519637,0.01128706,88597.0,88589.0,0.01132865]
[1766749519792,0.02260706,88597.0,88589.0,4.057e-05]
[1766749520135,0.02260706,88597.0,88589.0,0.01132865]
[1766749521136,0.01128719,88596.0,88589.0,4.057e-05]
[1766749521819,0.02260706,88597.0,88589.0,0.01132865]
[1766749522301,0.02260706,88597.0,88589.0,4.057e-05]
[1766749522743,0.01128719,88596.0,88589.0,4.057e-05]
[1766749522942,0.01128744,88594.0,88589.0,5.7e-07]
[1766749523161,0.01128757,88593.0,88589.0,5.7e-07]
[1766749523325,0.0112877,88592.0,88589.0,5.7e-07]
[1766749524493,0.01128833,88587.0,88584.0,0.0002]
[1766749524960,0.01128808,88589.0,88584.0,0.0002]
[1766749525528,0.01128821,88588.0,88584.0,0.0002]
[1766749526027,0.01128808,88589.0,88584.0,0.0002]
[1766749526239,0.01128782,88591.0,88584.0,0.0002]
[1766749526549,0.01128795,88590.0,88584.0,0.0002]
[1766749526867,0.01128782,88591.0,88584.0,0.0002]
[1766749527077,0.01128757,88593.0,88585.0,0.01128859]
[1766749527371,0.01128757,88593.0,88584.0,0.01148872]
[1766749528318,0.06772578,88593.0,88584.0,0.0002]
[1766749528520,0.0112877,88592.0,88584.0,0.0002]
[1766749528765,0.01128795,88590.0,88584.0,0.0002]
[1766749528969,0.06772652,88592.0,88584.0,0.0002]
[1766749529176,0.01128782,88591.0,88584.0,0.0002]
[1766749529343,0.01128795,88590.0,88584.0,0.0002]
[1766749529545,0.01128782,88591.0,88584.0,0.0002]
[1766749529850,0.0112877,88592.0,88584.0,0.01148872]
[1766749531097,0.01128757,88593.0,88584.0,0.01148872]
[1766749531702,0.01128757,88593.0,88585.0,0.01128859]
[1766749532101,0.01128757,88593.0,88584.0,0.01148872]
[1766749532486,0.01128757,88593.0,88585.0,0.01128859]
[1766749532685,0.0112877,88592.0,88584.0,0.01148872]
[1766749532884,0.01128757,88593.0,88585.0,0.01128859]
[1766749533086,0.01128757,88593.0,88584.0,0.01148872]
[1766749533283,0.01128782,88591.0,88584.0,0.0002]
[1766749533669,0.0564385,88592.0,88584.0,0.0002]
[1766749534011,0.0112877,88592.0,88584.0,0.0002]
[1766749534512,0.01128782,88591.0,88584.0,0.0002]
[1766749535412,0.0112877,88592.0,88584.0,0.0002]
[1766749535612,0.01128795,88590.0,88584.0,0.0002]
[1766749536046,0.01128808,88589.0,88584.0,0.0002]
[1766749536579,0.01128795,88590.0,88584.0,0.0002]
[1766749537025,0.05643839,88593.0,88584.0,0.0002]
[1766749537221,0.01128782,88591.0,88584.0,0.0002]
[1766749537388,0.0112877,88592.0,88584.0,0.0002]
[1766749537579,0.0112877,88592.0,88584.0,0.01148872]
[1766749537789,0.0112877,88592.0,88584.0,0.0002]
[1766749538095,0.0112877,88592.0,88584.0,0.01148872]
[1766749540058,0.0112877,88592.0,88584.0,0.0002]
[1766749540252,0.01128757,88593.0,88584.0,0.0002]
[1766749540454,0.41538956,88594.0,88585.0,0.01128859]
[1766749540657,0.40410212,88594.0,88586.0,0.01128846]
[1766749541158,0.41538956,88594.0,88585.0,0.01128859]
[1766749541723,0.01128757,88593.0,88585.0,0.01128859]
[1766749542137,0.0112877,88592.0,88584.0,0.01148872]
[1766749543092,0.01128757,88593.0,88584.0,0.06793187]
[1766749543234,0.01128757,88593.0,88584.0,0.01148872]
[1766749543441,0.01128757,88593.0,88585.0,0.01128859]
[1766749543638,0.01128757,88593.0,88584.0,0.06793204]
[1766749543839,0.0112877,88592.0,88584.0,0.01148872]
[1766749544621,0.01128782,88591.0,88584.0,0.0002]
[1766749544805,0.0112877,88592.0,88584.0,0.01148872]
[1766749545214,0.01128757,88593.0,88585.0,0.01128859]
[1766749545516,0.0112877,88592.0,88584.0,0.0002]
[1766749545803,0.01128757,88593.0,88584.0,0.01148872]
[1766749546691,0.0112877,88592.0,88584.0,0.01148872]
[1766749547052,0.41538956,88594.0,88584.0,0.01148872]
[1766749547439,0.01128757,88593.0,88584.0,0.01148872]
[1766749548788,0.0112877,88592.0,88584.0,0.01148872]
[1766749550940,0.01128782,88591.0,88584.0,0.0002]
[1766749551139,0.06772732,88591.0,88584.0,0.0002]
[1766749551422,0.01128782,88591.0,88584.0,0.0002]
[1766749553322,0.0112877,88592.0,88584.0,0.01148872]
[1766749554627,0.01128782,88591.0,88584.0,0.0002]
[1766749555196,0.01128795,88590.0,88584.0,0.0002]
[1766749555400,0.01128782,88591.0,88584.0,0.0002]
[1766749558018,0.01128795,88590.0,88584.0,0.0002]
[1766749558428,0.01128782,88591.0,88584.0,0.0002]
[1766749559151,0.01128795,88590.0,88584.0,0.0002]
[1766749560424,0.01128808,88589.0,88584.0,0.0002]
[1766749560615,0.01128821,88588.0,88584.0,0.0002]
[1766749560839,0.0002,88584.0,88578.0,0.07902579]
[1766749561067,0.0002,88584.0,88530.0,0.40430212]
[1766749561068,0.01128923,88580.0,88572.0,0.01129024]
[1766749561224,0.01128923,88580.0,88569.0,0.05665259]
[1766749561225,0.01128935,88579.0,88573.0,0.01132]
[1766749561427,0.01128948,88578.0,88573.0,0.01132]
[1766749561647,0.01128935,88579.0,88573.0,0.01132]
[1766749562592,0.01128923,88580.0,88573.0,0.01132]
[1766749563400,0.01128935,88579.0,88573.0,0.01132]
[1766749563734,0.01128923,88580.0,88573.0,0.01132]
[1766749564140,0.0112891,88581.0,88573.0,0.02261012]
[1766749564564,0.01128923,88580.0,88573.0,0.01132]
[1766749565747,0.01128935,88579.0,88573.0,0.01132]
[1766749566295,0.01128948,88578.0,88573.0,0.01132]
[1766749568305,0.01128961,88577.0,88573.0,0.01132]
[1766749568519,0.0002,88573.0,88570.0,0.0112905]
[1766749568700,0.41539135,88580.0,88577.0,0.000149]
[1766749568913,0.01128923,88580.0,88571.0,0.01129037]
[1766749569078,0.01128935,88579.0,88571.0,0.01129037]
[1766749571546,0.01128923,88580.0,88571.0,0.01129037]
[1766749572815,0.01128948,88578.0,88570.0,0.0112905]
[1766749573022,0.01128923,88580.0,88571.0,0.01129037]
[1766749573023,0.01128935,88579.0,88571.0,0.01129037]
[1766749573570,0.01128948,88578.0,88571.0,0.01129037]
[1766749573992,0.01128935,88579.0,88571.0,0.01129037]
[1766749574442,0.01128923,88580.0,88572.0,0.01129024]
[1766749575094,0.41539122,88581.0,88573.0,0.01129012]
[1766749575307,0.01128923,88580.0,88569.0,0.01149063]
[1766749575536,0.01128923,88580.0,86360.0,0.002]
[1766749575537,0.01129165,88561.0,88547.0,0.01129343]
[1766749575734,0.01129114,88565.0,88555.0,0.01132]
[1766749575943,0.01129139,88563.0,88555.0,0.01132]
[1766749576210,0.01129139,88563.0,88555.0,0.02261241]
[1766749576613,0.01129152,88562.0,88555.0,0.01132]
[1766749577605,0.01129165,88561.0,88557.0,4.59e-05]
[1766749577840,0.01129152,88562.0,88557.0,4.59e-05]
[1766749578308,0.01129165,88561.0,88557.0,4.59e-05]
[1766749578895,0.01129177,88560.0,88557.0,4.59e-05]
[1766749579095,0.40410212,88553.0,88546.0,0.06776124]
[1766749579294,0.07907193,88559.0,88553.0,0.000549]
[1766749579295,0.01132,88559.0,88553.0,0.000549]
[1766749579878,0.01132,88559.0,88552.0,0.01129279]
[1766749580307,0.01132,88559.0,88553.0,0.01129267]
[1766749581044,0.01132,88559.0,88553.0,0.01140049]
[1766749581797,0.01132,88559.0,88553.0,0.00010782]
[1766749582630,0.01132,88559.0,88554.0,0.01129254]
[1766749583433,0.01132,88559.0,88555.0,0.01129241]
[1766749584040,0.01132,88559.0,88554.0,0.01129254]
[1766749584732,0.010771,88559.0,88556.0,0.01129228]
[1766749584940,0.01132,88559.0,88556.0,0.06775327]
[1766749588346,0.01132,88563.0,88555.0,0.01129241]
[1766749588550,0.01077,88563.0,88559.0,0.0112919]
[1766749588977,0.01077,88563.0,88560.0,0.01129177]
[1766749589525,0.01077,88563.0,88558.0,0.01129203]
[1766749589730,0.01077,88563.0,88559.0,0.0112919]
[1766749590434,0.01077,88563.0,88558.0,0.01129203]
[1766749590640,0.01077,88563.0,88559.0,0.0112919]
[1766749590846,0.01077,88563.0,88558.0,0.01129203]
[1766749591060,0.01077,88563.0,88559.0,0.0112919]
[1766749591853,0.01132,88569.0,88564.0,0.01129126]
[1766749592019,0.22579134,88578.0,88564.0,0.01129126]
[1766749592020,0.01129088,88571.0,88567.0,0.01129088]
[1766749592231,0.01129088,88571.0,88565.0,0.01129114]
[1766749592426,0.01129101,88566.0,88561.0,0.01132]
[1766749592626,0.01129101,88566.0,88553.0,0.01140049]
[1766749592627,0.01129114,88565.0,88557.0,0.01129216]
[1766749592871,0.01129114,88565.0,88556.0,0.02261228]
[1766749593246,0.01129114,88565.0,88557.0,0.01129216]
[1766749593668,0.01129126,88564.0,88556.0,0.01132]
[1766749593869,0.06774645,88566.0,88555.0,0.06775445]
[1766749593870,0.05645889,88560.0,88555.0,0.00450752]
[1766749594074,0.01129203,88558.0,88555.0,0.00450752]
[1766749594274,0.0112919,88559.0,88553.0,0.00010782]
[1766749594601,0.01129216,88557.0,88553.0,0.00010782]
[1766749594841,0.0112919,88559.0,88553.0,0.00010782]
[1766749595272,0.01129165,88561.0,88553.0,0.01140049]
[1766749595615,0.01129152,88562.0,88553.0,0.01140049]
[1766749595616,0.01129152,88562.0,88554.0,0.01129254]
[1766749595820,0.01129152,88562.0,88553.0,0.01140049]
[1766749595821,0.01129165,88561.0,88553.0,0.01140049]
[1766749596040,0.41539351,88563.0,88554.0,0.01129254]
[1766749596041,0.01129139,88563.0,88554.0,0.01129254]
[1766749596226,0.06774804,88565.0,88554.0,0.01129254]
[1766749596433,0.06774804,88565.0,88554.0,0.0677548]
[1766749596639,0.06774804,88565.0,88556.0,0.01129228]
[1766749596862,0.01129126,88564.0,88557.0,0.01129216]
[1766749596984,0.01129139,88563.0,88555.0,0.01129241]
[1766749597200,0.01129152,88562.0,88554.0,0.01129254]
[1766749597410,0.01129139,88563.0,88554.0,0.01129254]
[1766749597974,0.01129126,88564.0,88556.0,0.01129228]
[1766749598309,0.01129139,88563.0,88555.0,0.01129241]
[1766749598505,0.07906804,88565.0,88555.0,0.01129241]
[1766749598506,0.07906804,88565.0,88557.0,0.01129216]
[1766749598659,0.01132,88565.0,88563.0,0.000549]
[1766749598875,0.02261114,88565.0,88557.0,0.01129216]
[1766749599892,0.01129101,88566.0,88558.0,0.01129203]
[1766749600043,0.02261101,88566.0,88558.0,0.01129203]
[1766749602086,0.01129114,88565.0,88557.0,0.01129216]
[1766749602305,0.02261101,88566.0,88557.0,0.01129216]
[1766749602691,0.01129114,88565.0,88557.0,0.01129216]
[1766749602894,0.02261101,88566.0,88558.0,0.01129203]
[1766749603071,0.01132,88566.0,88559.0,0.0112919]
[1766749603416,0.01132,88566.0,88558.0,0.01129203]
[1766749603417,0.02261101,88566.0,88558.0,0.01129203]
[1766749603625,0.02261101,88566.0,88559.0,0.00015054]
[1766749603760,0.01132,88566.0,88559.0,0.00015054]
[1766749603960,0.02261101,88566.0,88559.0,0.00015054]
[1766749604508,0.01132,88566.0,88559.0,0.01144244]
[1766749605732,0.01132,88566.0,88559.0,0.00015054]
[1766749606434,0.01132,88566.0,88559.0,0.01144244]
[1766749606638,0.01132,88566.0,88560.0,0.01129177]
[1766749607820,0.01132,88566.0,88559.0,0.01144244]
[1766749608028,0.01132,88566.0,88559.0,0.00015054]
[1766749608428,0.02261101,88566.0,88559.0,0.00015054]
[1766749608628,0.01129114,88565.0,88559.0,0.00015054]
[1766749609122,0.01129126,88564.0,88559.0,0.00015054]
[1766749609345,0.01129126,88564.0,88556.0,0.01129228]
[1766749609550,0.01129126,88564.0,88554.0,0.01129254]
[1766749609727,0.01129139,88563.0,88554.0,0.01129254]
[1766749610131,0.01129139,88563.0,88555.0,0.01129241]
[1766749610478,0.01129139,88563.0,88553.0,0.05657055]
[1766749610479,0.01129165,88561.0,88553.0,0.00010782]
[1766749610766,0.06774991,88561.0,88553.0,0.00010782]
[1766749610966,0.01129126,88564.0,88555.0,0.01129241]
[1766749611347,0.01129126,88564.0,88556.0,0.01129228]
[1766749611771,0.01129126,88564.0,88555.0,0.01129241]
[1766749612278,0.41563521,88565.0,88556.0,0.01129228]
[1766749612495,0.01129126,88564.0,88556.0,0.01129228]
[1766749612712,0.41563521,88565.0,88557.0,0.01129216]
[1766749613474,0.01129139,88563.0,88555.0,0.01129241]
[1766749613708,0.01129126,88564.0,88556.0,0.01129228]
[1766749614414,0.01129139,88563.0,88556.0,0.01129228]
[1766749614618,0.01129126,88564.0,88556.0,0.01129228]
[1766749614820,0.01129139,88563.0,88555.0,0.01129241]
[1766749615126,0.01129152,88562.0,88554.0,0.01129254]
[1766749615367,0.01129139,88563.0,88555.0,0.01129241]
[1766749615563,0.01129139,88563.0,88554.0,0.01129254]
[1766749615946,0.01129114,88565.0,88556.0,0.01129228]
[1766749616269,0.01129114,88565.0,88555.0,0.05646162]
[1766749616270,0.01129126,88564.0,88554.0,0.01129254]
[1766749616648,0.01129126,88564.0,88556.0,0.01129228]
[1766749617575,0.01129126,88564.0,88557.0,0.01129216]
[1766749617789,0.01129114,88565.0,88556.0,0.01129228]
[1766749617966,0.01129114,88565.0,88557.0,0.01129216]
[1766749618167,0.01129126,88564.0,88556.0,0.01129228]
[1766749618385,0.01129152,88562.0,88554.0,0.06775514]
[1766749618554,0.01129139,88563.0,88554.0,0.06775514]
[1766749618754,0.01129139,88563.0,88554.0,0.01129254]
[1766749619181,0.01129165,88561.0,88553.0,0.00010782]
[1766749619562,0.01129152,88562.0,88553.0,0.00010782]
[1766749619769,0.01129165,88561.0,88553.0,0.01140049]
[1766749620032,0.01129165,88561.0,88553.0,0.00010782]
[1766749620216,0.01129152,88562.0,88554.0,0.01129254]
[1766749620421,0.01129165,88561.0,88553.0,0.01140049]
[1766749620946,0.40434407,88563.0,88553.0,0.00010782]
[1766749621121,0.0112919,88559.0,88553.0,0.00010782]
[1766749621324,0.01129177,88560.0,88553.0,0.00010782]
[1766749621499,0.01129203,88558.0,88553.0,0.00010782]
[1766749621709,0.05645988,88559.0,88553.0,0.00010782]
[1766749622037,0.01129203,88558.0,88553.0,0.00010782]
[1766749622709,0.06775178,88559.0,88553.0,0.00010782]
[1766749623211,0.01129203,88558.0,88553.0,0.00010782]
[1766749624745,0.0112919,88559.0,88553.0,0.00010782]
[1766749625506,0.01129177,88560.0,88553.0,0.00010782]
[1766749625938,0.01129203,88558.0,88553.0,0.00010782]
[1766749626148,0.01129216,88557.0,88553.0,0.00010782]
[1766749626637,0.01129203,88558.0,88553.0,0.00010782]
[1766749627216,0.01129216,88557.0,88553.0,0.00010782]
[1766749627648,0.01129203,88558.0,88553.0,0.00010782]
[1766749628047,0.06775183,88559.0,88553.0,0.00010782]
[1766749628626,0.01129203,88558.0,88553.0,0.00010782]
[1766749629039,0.01129216,88557.0,88553.0,0.00010782]
[1766749629245,0.01129216,88557.0,88433.0,0.14281983]
[1766749629246,0.0112933,88548.0,88543.0,0.01107181]
[1766749629461,0.0112933,88548.0,88543.0,0.01143182]
[1766749629462,0.0677617,88546.0,88543.0,0.01143182]
[1766749629710,0.01129343,88547.0,88543.0,0.01143182]
[1766749630054,0.01129318,88549.0,88543.0,0.01143182]
[1766749630291,0.01129279,88552.0,88549.0,0.000549]
[1766749630673,0.01129203,88558.0,88543.0,0.02272576]
[1766749630674,0.05646269,88555.0,88543.0,0.02272576]
[1766749630878,0.01129267,88553.0,88543.0,0.02272576]
[1766749631074,0.06775633,88553.0,88543.0,0.02272576]
[1766749631279,0.01129292,88551.0,88543.0,0.01143182]
[1766749631885,0.01129279,88552.0,88551.0,0.000549]
[1766749632279,0.01129305,88550.0,88543.0,0.01143182]